[Event "Live Chess"]
[Site "Chess.com"]
[Date "2023.05.21"]
[Round "-"]
[White "MarkLim1"]
[Black "Tilbs_12"]
[Result "1/2-1/2"]
[WhiteElo "1725"]
[BlackElo "1575"]
[TimeControl "300"]
[EndTime "2:49:27 PDT"]
[Termination "Game drawn - insufficient material"]

1. d4 {[%clk 0:04:58.8]} 1... d5 {[%clk 0:04:54.9]} 2. Nf3 {[%clk 0:04:56.8]}
2... Nf6 {[%clk 0:04:53.3]} 3. c4 {[%clk 0:04:55.9]} 3... c6 {[%clk 0:04:51.1]}
4. cxd5 {[%clk 0:04:55.3]} 4... cxd5 {[%clk 0:04:50.1]} 5. Nc3 {[%clk
0:04:54.9]} 5... Nc6 {[%clk 0:04:49.3]} 6. Bf4 {[%clk 0:04:54.3]} 6... Bf5
{[%clk 0:04:44.4]} 7. e3 {[%clk 0:04:52.4]} 7... a6 {[%clk 0:04:43.1]} 8. Be2
{[%clk 0:04:48.9]} 8... e6 {[%clk 0:04:42.1]} 9. O-O {[%clk 0:04:48]} 9... Bd6
{[%clk 0:04:40.6]} 10. Bxd6 {[%clk 0:04:45.7]} 10... Qxd6 {[%clk 0:04:39.5]} 11.
Rc1 {[%clk 0:04:45.3]} 11... O-O {[%clk 0:04:38.2]} 12. Na4 {[%clk 0:04:44.5]}
12... Ne4 {[%clk 0:04:28.4]} 13. Nc5 {[%clk 0:04:42.4]} 13... Nxc5 {[%clk
0:04:25.4]} 14. dxc5 {[%clk 0:04:41.3]} 14... Qe7 {[%clk 0:04:23.6]} 15. a3
{[%clk 0:04:38.6]} 15... Rad8 {[%clk 0:04:18.3]} 16. Nd4 {[%clk 0:04:37.1]}
16... Bg6 {[%clk 0:04:13.1]} 17. b4 {[%clk 0:04:36]} 17... e5 {[%clk 0:04:11.1]}
18. Nxc6 {[%clk 0:04:35]} 18... bxc6 {[%clk 0:04:10.1]} 19. Bxa6 {[%clk
0:04:33.8]} 19... Qa7 {[%clk 0:03:52.2]} 20. b5 {[%clk 0:04:23.7]} 20... cxb5
{[%clk 0:03:51]} 21. Bxb5 {[%clk 0:04:22.6]} 21... Qxa3 {[%clk 0:03:50]} 22. c6
{[%clk 0:04:15.6]} 22... Qb4 {[%clk 0:03:35.1]} 23. c7 {[%clk 0:04:11.8]} 23...
Rc8 {[%clk 0:03:33]} 24. Bd7 {[%clk 0:04:09.4]} 24... Qd6 {[%clk 0:03:26.3]} 25.
Bxc8 {[%clk 0:04:07.9]} 25... Rxc8 {[%clk 0:03:25.5]} 26. Qa4 {[%clk 0:03:59.2]}
26... h6 {[%clk 0:03:22.8]} 27. Qc6 {[%clk 0:03:51.4]} 27... Qxc6 {[%clk
0:03:09.2]} 28. Rxc6 {[%clk 0:03:51.3]} 28... d4 {[%clk 0:03:08.6]} 29. exd4
{[%clk 0:03:39.9]} 29... exd4 {[%clk 0:03:07.8]} 30. Rd1 {[%clk 0:03:34.7]}
30... d3 {[%clk 0:03:06.2]} 31. f4 {[%clk 0:03:32.4]} 31... Kf8 {[%clk
0:03:02.7]} 32. g4 {[%clk 0:03:31.2]} 32... Be4 {[%clk 0:02:55.4]} 33. Rc4
{[%clk 0:03:27.1]} 33... f5 {[%clk 0:02:53.9]} 34. Kf2 {[%clk 0:03:18.2]} 34...
Ke7 {[%clk 0:02:49.4]} 35. gxf5 {[%clk 0:03:14.5]} 35... Bxf5 {[%clk 0:02:48.1]}
36. Re1+ {[%clk 0:03:01.5]} 36... Kd6 {[%clk 0:02:39]} 37. Re5 {[%clk
0:02:58.4]} 37... g6 {[%clk 0:02:34.8]} 38. Ke3 {[%clk 0:02:53.5]} 38... Rxc7
{[%clk 0:02:28.5]} 39. Rd4+ {[%clk 0:02:27.3]} 39... Kc6 {[%clk 0:02:22]} 40.
Rc4+ {[%clk 0:02:26]} 40... Kd6 {[%clk 0:02:20.7]} 41. Rxc7 {[%clk 0:02:24.7]}
41... Kxc7 {[%clk 0:02:19.8]} 42. h4 {[%clk 0:02:21.1]} 42... Kd6 {[%clk
0:02:17.3]} 43. h5 {[%clk 0:02:13.8]} 43... Kd7 {[%clk 0:02:02.8]} 44. Ra5
{[%clk 0:02:10.3]} 44... Ke7 {[%clk 0:01:54.1]} 45. Ra6 {[%clk 0:01:58.9]} 45...
Kf7 {[%clk 0:01:52.5]} 46. hxg6+ {[%clk 0:01:57.4]} 46... Bxg6 {[%clk
0:01:51.2]} 47. Ra7+ {[%clk 0:01:50.1]} 47... Kf6 {[%clk 0:01:48.9]} 48. Ra6+
{[%clk 0:01:49.1]} 48... Kf5 {[%clk 0:01:47.6]} 49. Ra5+ {[%clk 0:01:47.4]}
49... Kg4 {[%clk 0:01:44.7]} 50. Ra1 {[%clk 0:01:43.7]} 50... h5 {[%clk
0:01:42.3]} 51. Rg1+ {[%clk 0:01:41.5]} 51... Kf5 {[%clk 0:01:37]} 52. Rg5+
{[%clk 0:01:40.4]} 52... Kf6 {[%clk 0:01:34.9]} 53. Ra5 {[%clk 0:01:35]} 53...
h4 {[%clk 0:01:30.5]} 54. Kf3 {[%clk 0:01:31.6]} 54... Ke6 {[%clk 0:01:21.5]}
55. Kg4 {[%clk 0:01:30.2]} 55... d2 {[%clk 0:01:18.4]} 56. Ra1 {[%clk
0:01:22.3]} 56... Bc2 {[%clk 0:00:47.2]} 57. Kxh4 {[%clk 0:01:15.4]} 57... d1=Q
{[%clk 0:00:44.9]} 58. Rxd1 {[%clk 0:01:14.4]} 58... Bxd1 {[%clk 0:00:44.1]} 59.
Kg5 {[%clk 0:01:13.5]} 59... Bc2 {[%clk 0:00:41.8]} 60. f5+ {[%clk 0:01:12.4]}
60... Bxf5 {[%clk 0:00:40.9]} 1/2-1/2

[Event "Live Chess"]
[Site "Chess.com"]
[Date "2023.05.21"]
[Round "-"]
[White "EdenHazard8"]
[Black "RichardABates"]
[Result "1-0"]
[WhiteElo "1979"]
[BlackElo "2070"]
[TimeControl "300"]
[EndTime "2:49:35 PDT"]
[Termination "EdenHazard8 won by resignation"]

1. e4 {[%clk 0:04:59.2]} 1... c5 {[%clk 0:04:58.5]} 2. Nc3 {[%clk 0:04:58.3]}
2... Nc6 {[%clk 0:04:57]} 3. Nf3 {[%clk 0:04:56.9]} 3... e5 {[%clk 0:04:50.7]}
4. Bb5 {[%clk 0:04:55.6]} 4... Nd4 {[%clk 0:04:45.3]} 5. Nxe5 {[%clk 0:04:45.8]}
5... Qg5 {[%clk 0:04:43.8]} 6. Ng4 {[%clk 0:04:29.7]} 6... a6 {[%clk 0:04:21.6]}
7. Be2 {[%clk 0:04:22]} 7... d5 {[%clk 0:04:15.1]} 8. d3 {[%clk 0:04:17.6]} 8...
Qh4 {[%clk 0:04:10]} 9. exd5 {[%clk 0:04:03.9]} 9... Bd6 {[%clk 0:03:56.1]} 10.
Ne4 {[%clk 0:03:46.7]} 10... Nxe2 {[%clk 0:03:51.3]} 11. Qxe2 {[%clk 0:03:42.2]}
11... Bxg4 {[%clk 0:03:49.1]} 12. Nf6+ {[%clk 0:03:36.3]} 12... Kf8 {[%clk
0:03:47.2]} 13. Nxg4 {[%clk 0:03:33.3]} 13... Re8 {[%clk 0:03:43]} 14. Ne3
{[%clk 0:03:31.3]} 14... Nf6 {[%clk 0:03:29.7]} 15. g3 {[%clk 0:03:23.8]} 15...
Qh3 {[%clk 0:03:27.7]} 16. Qf3 {[%clk 0:03:17.4]} 16... h5 {[%clk 0:03:20.3]}
17. Bd2 {[%clk 0:03:16]} 1-0

[Event "Live Chess"]
[Site "Chess.com"]
[Date "2023.05.21"]
[Round "-"]
[White "Long1968"]
[Black "JoshMcK"]
[Result "0-1"]
[WhiteElo "960"]
[BlackElo "1520"]
[TimeControl "300"]
[EndTime "2:49:36 PDT"]
[Termination "JoshMcK won on time"]

1. e4 {[%clk 0:04:56.8]} 1... c6 {[%clk 0:04:58.8]} 2. d4 {[%clk 0:04:54.5]}
2... d5 {[%clk 0:04:58.2]} 3. e5 {[%clk 0:04:52.2]} 3... c5 {[%clk 0:04:56.6]}
4. c3 {[%clk 0:04:46.8]} 4... e6 {[%clk 0:04:55.7]} 5. f4 {[%clk 0:04:36]} 5...
cxd4 {[%clk 0:04:52.8]} 6. cxd4 {[%clk 0:04:33.7]} 6... Nc6 {[%clk 0:04:51.3]}
7. Nc3 {[%clk 0:04:29.8]} 7... Bb4 {[%clk 0:04:46.3]} 8. Nf3 {[%clk 0:04:20.7]}
8... Nge7 {[%clk 0:04:39.7]} 9. Bd3 {[%clk 0:04:13.6]} 9... O-O {[%clk
0:04:37.2]} 10. O-O {[%clk 0:04:08.8]} 10... a6 {[%clk 0:04:31.2]} 11. a3 {[%clk
0:03:59.1]} 11... Bxc3 {[%clk 0:04:29.9]} 12. bxc3 {[%clk 0:03:56.2]} 12... b5
{[%clk 0:04:24.2]} 13. a4 {[%clk 0:03:49.1]} 13... bxa4 {[%clk 0:04:22.1]} 14.
Rxa4 {[%clk 0:03:39.5]} 14... a5 {[%clk 0:04:21.2]} 15. Ba3 {[%clk 0:03:23.7]}
15... Ba6 {[%clk 0:04:18]} 16. Bxa6 {[%clk 0:02:42]} 16... Rxa6 {[%clk
0:04:17.9]} 17. Qa1 {[%clk 0:02:32]} 17... Re8 {[%clk 0:04:07.5]} 18. Rb1 {[%clk
0:02:17.9]} 18... Ng6 {[%clk 0:03:53.4]} 19. Bc1 {[%clk 0:01:57.9]} 19... Nge7
{[%clk 0:03:49.5]} 20. Rb7 {[%clk 0:01:26.8]} 20... Qa8 {[%clk 0:03:38.6]} 21.
Qb1 {[%clk 0:01:13]} 21... Rb8 {[%clk 0:03:27.9]} 22. Rxb8+ {[%clk 0:00:41.9]}
22... Qxb8 {[%clk 0:03:27.8]} 23. Qd3 {[%clk 0:00:30.6]} 23... Ra8 {[%clk
0:03:18.1]} 24. Ng5 {[%clk 0:00:18.3]} 24... g6 {[%clk 0:03:14.7]} 25. Qh3
{[%clk 0:00:14.5]} 25... h5 {[%clk 0:03:09.8]} 26. g4 {[%clk 0:00:04.4]} 26...
Qb3 {[%clk 0:03:01.6]} 0-1

[Event "Live Chess"]
[Site "Chess.com"]
[Date "2023.05.21"]
[Round "-"]
[White "Singapourfeuj"]
[Black "LiamBellwood"]
[Result "0-1"]
[WhiteElo "2182"]
[BlackElo "1972"]
[TimeControl "300"]
[EndTime "2:49:40 PDT"]
[Termination "LiamBellwood won by checkmate"]

1. d4 {[%clk 0:04:55.8]} 1... e6 {[%clk 0:04:59.9]} 2. e4 {[%clk 0:04:54.5]}
2... d5 {[%clk 0:04:59.1]} 3. Nc3 {[%clk 0:04:52.7]} 3... Nf6 {[%clk 0:04:57.7]}
4. Bg5 {[%clk 0:04:48.9]} 4... h6 {[%clk 0:04:56.1]} 5. Bxf6 {[%clk 0:04:47.4]}
5... Qxf6 {[%clk 0:04:56]} 6. e5 {[%clk 0:04:45.9]} 6... Qd8 {[%clk 0:04:55]} 7.
f4 {[%clk 0:04:44.6]} 7... c5 {[%clk 0:04:54.3]} 8. Nf3 {[%clk 0:04:43.5]} 8...
Nc6 {[%clk 0:04:54.2]} 9. Bb5 {[%clk 0:04:42.2]} 9... Bd7 {[%clk 0:04:52.9]} 10.
Bxc6 {[%clk 0:04:40.9]} 10... Bxc6 {[%clk 0:04:51.9]} 11. O-O {[%clk 0:04:39.3]}
11... Qb6 {[%clk 0:04:51.5]} 12. Kh1 {[%clk 0:04:33.9]} 12... Qxb2 {[%clk
0:04:47]} 13. Ne2 {[%clk 0:04:27.9]} 13... cxd4 {[%clk 0:04:37.7]} 14. Nexd4
{[%clk 0:04:25.7]} 14... Be7 {[%clk 0:04:36.2]} 15. f5 {[%clk 0:04:21]} 15...
O-O {[%clk 0:03:55.2]} 16. fxe6 {[%clk 0:04:14]} 16... fxe6 {[%clk 0:03:54.5]}
17. Nxe6 {[%clk 0:04:12.7]} 17... Rf5 {[%clk 0:03:36.5]} 18. Ned4 {[%clk
0:04:07.3]} 18... Rf4 {[%clk 0:03:23.7]} 19. Qd2 {[%clk 0:03:56.3]} 19... Raf8
{[%clk 0:03:16.3]} 20. Ne6 {[%clk 0:03:54.2]} 20... Rxf3 {[%clk 0:03:11.9]} 21.
gxf3 {[%clk 0:03:47.8]} 21... Rxf3 {[%clk 0:03:08.6]} 22. Nd4 {[%clk 0:03:43.6]}
22... Rxf1+ {[%clk 0:02:52.1]} 23. Rxf1 {[%clk 0:03:41.4]} 23... Bc5 {[%clk
0:02:40.7]} 24. Ne6 {[%clk 0:03:33.6]} 24... Qxe5 {[%clk 0:02:31.7]} 25. Nxc5
{[%clk 0:03:32.1]} 25... d4+ {[%clk 0:02:25.5]} 26. Kg1 {[%clk 0:03:30.9]} 26...
Qxc5 {[%clk 0:02:19.6]} 27. Rf2 {[%clk 0:03:23]} 27... Qd5 {[%clk 0:01:53.8]}
28. Kf1 {[%clk 0:03:21.6]} 28... Bb5+ {[%clk 0:01:51.6]} 29. Re2 {[%clk
0:03:16.5]} 29... Qh1+ {[%clk 0:01:49.5]} 30. Kf2 {[%clk 0:03:15.4]} 30... Qxh2+
{[%clk 0:01:45.6]} 31. Ke1 {[%clk 0:03:14.2]} 31... Qg1# {[%clk 0:01:43.9]} 0-1

[Event "Live Chess"]
[Site "Chess.com"]
[Date "2023.05.21"]
[Round "-"]
[White "NatashaRegan"]
[Black "ChessTWSS"]
[Result "0-1"]
[WhiteElo "1721"]
[BlackElo "1658"]
[TimeControl "300"]
[EndTime "2:49:43 PDT"]
[Termination "ChessTWSS won by resignation"]

1. e4 {[%clk 0:04:56.1]} 1... c5 {[%clk 0:04:56.5]} 2. d4 {[%clk 0:04:54.1]}
2... cxd4 {[%clk 0:04:49.7]} 3. c3 {[%clk 0:04:53]} 3... dxc3 {[%clk 0:04:46.1]}
4. Nxc3 {[%clk 0:04:51.3]} 4... Nc6 {[%clk 0:04:41.6]} 5. Nf3 {[%clk 0:04:48]}
5... e6 {[%clk 0:04:36]} 6. Bc4 {[%clk 0:04:46.5]} 6... g6 {[%clk 0:04:26.1]} 7.
O-O {[%clk 0:04:34.7]} 7... Bg7 {[%clk 0:04:14.9]} 8. Bg5 {[%clk 0:04:24.9]}
8... f6 {[%clk 0:03:58.5]} 9. Be3 {[%clk 0:04:15.8]} 9... Nge7 {[%clk
0:03:49.6]} 10. Rc1 {[%clk 0:04:07]} 10... f5 {[%clk 0:03:45]} 11. exf5 {[%clk
0:03:56.4]} 11... Nxf5 {[%clk 0:03:41.4]} 12. Bg5 {[%clk 0:03:54.2]} 12... Bf6
{[%clk 0:03:35.4]} 13. Bxf6 {[%clk 0:03:46.4]} 13... Qxf6 {[%clk 0:03:30.7]} 14.
Ne4 {[%clk 0:03:44.9]} 14... Qe7 {[%clk 0:03:23.1]} 15. Qd2 {[%clk 0:03:23.3]}
15... d5 {[%clk 0:03:18.5]} 16. Bxd5 {[%clk 0:03:03]} 16... exd5 {[%clk
0:03:14.7]} 17. Qxd5 {[%clk 0:03:01.9]} 17... Qe6 {[%clk 0:03:04.8]} 18. Qxe6+
{[%clk 0:02:53.5]} 18... Bxe6 {[%clk 0:03:04.7]} 19. Nc5 {[%clk 0:02:51.8]}
19... Bxa2 {[%clk 0:02:58]} 20. Rfe1+ {[%clk 0:02:47.5]} 20... Nce7 {[%clk
0:02:52.2]} 21. Nxb7 {[%clk 0:02:42.4]} 21... Bd5 {[%clk 0:02:36.6]} 22. Rc7
{[%clk 0:02:34.9]} 22... Bxf3 {[%clk 0:02:26.1]} 23. gxf3 {[%clk 0:02:22]} 23...
Kf8 {[%clk 0:02:19.8]} 24. Nd6 {[%clk 0:02:16]} 24... Nd5 {[%clk 0:02:14]} 25.
Nxf5 {[%clk 0:01:49.6]} 25... Nxc7 {[%clk 0:02:08.7]} 26. Nd6 {[%clk 0:01:44.3]}
0-1

[Event "Live Chess"]
[Site "Chess.com"]
[Date "2023.05.21"]
[Round "-"]
[White "Rusty_Bridges"]
[Black "SupremeTactician"]
[Result "0-1"]
[WhiteElo "1514"]
[BlackElo "2254"]
[TimeControl "300"]
[EndTime "2:49:57 PDT"]
[Termination "SupremeTactician won by resignation"]

1. e4 {[%clk 0:04:55.9]} 1... e5 {[%clk 0:04:59.4]} 2. f4 {[%clk 0:04:53.5]}
2... Nc6 {[%clk 0:04:57.5]} 3. Nf3 {[%clk 0:04:52.5]} 3... d6 {[%clk 0:04:56.1]}
4. Bc4 {[%clk 0:04:51]} 4... Bg4 {[%clk 0:04:55.1]} 5. d3 {[%clk 0:04:47.7]}
5... Be7 {[%clk 0:04:53.3]} 6. O-O {[%clk 0:04:46.1]} 6... Nf6 {[%clk 0:04:52]}
7. f5 {[%clk 0:04:43.6]} 7... O-O {[%clk 0:04:49.2]} 8. h3 {[%clk 0:04:42.3]}
8... Bxf3 {[%clk 0:04:47.7]} 9. Qxf3 {[%clk 0:04:41.2]} 9... Nd4 {[%clk
0:04:46.5]} 10. Qd1 {[%clk 0:04:38.5]} 10... b5 {[%clk 0:04:44.8]} 11. Bb3
{[%clk 0:04:36.8]} 11... a5 {[%clk 0:04:44.6]} 12. c3 {[%clk 0:04:34.2]} 12...
Nxb3 {[%clk 0:04:43.1]} 13. axb3 {[%clk 0:04:32.4]} 13... Rb8 {[%clk 0:04:42.9]}
14. Bg5 {[%clk 0:04:29.1]} 14... c5 {[%clk 0:04:41]} 15. Nd2 {[%clk 0:04:27.2]}
15... h6 {[%clk 0:04:37.9]} 16. Bh4 {[%clk 0:04:25.3]} 16... Nd7 {[%clk
0:04:28.4]} 17. Bxe7 {[%clk 0:04:23.3]} 17... Qxe7 {[%clk 0:04:27.7]} 18. Nf3
{[%clk 0:04:19.8]} 18... c4 {[%clk 0:04:23.4]} 19. bxc4 {[%clk 0:04:17.8]} 19...
bxc4 {[%clk 0:04:22.9]} 20. d4 {[%clk 0:04:03]} 20... Rxb2 {[%clk 0:04:18.7]}
21. dxe5 {[%clk 0:03:59.7]} 21... Nxe5 {[%clk 0:04:17.9]} 22. Nxe5 {[%clk
0:03:57.7]} 22... Qxe5 {[%clk 0:04:17.2]} 23. Qf3 {[%clk 0:03:43.1]} 23... Rfb8
{[%clk 0:04:05.5]} 24. f6 {[%clk 0:03:40.7]} 24... Qxf6 {[%clk 0:04:00.8]} 25.
Qxf6 {[%clk 0:03:39.1]} 25... gxf6 {[%clk 0:04:00.2]} 26. Rxf6 {[%clk
0:03:37.7]} 26... Rb1+ {[%clk 0:03:58.5]} 27. Rxb1 {[%clk 0:03:34.7]} 27...
Rxb1+ {[%clk 0:03:58.4]} 28. Kh2 {[%clk 0:03:33.8]} 28... Rc1 {[%clk 0:03:57.7]}
29. Rxd6 {[%clk 0:03:29.5]} 29... Rxc3 {[%clk 0:03:57.1]} 30. Rxh6 {[%clk
0:03:18.5]} 30... a4 {[%clk 0:03:56.5]} 31. Ra6 {[%clk 0:03:16.9]} 31... a3
{[%clk 0:03:55.9]} 32. h4 {[%clk 0:03:16.2]} 32... Re3 {[%clk 0:03:53.7]} 33. h5
{[%clk 0:03:10.9]} 33... Rxe4 {[%clk 0:03:37.9]} 34. Rxa3 {[%clk 0:03:07.5]}
34... Rh4+ {[%clk 0:03:37.5]} 35. Kg1 {[%clk 0:03:05.5]} 35... Rxh5 {[%clk
0:03:36.7]} 36. Rc3 {[%clk 0:03:02.4]} 36... Rc5 {[%clk 0:03:36]} 37. Kf2 {[%clk
0:03:01.2]} 37... f6 {[%clk 0:03:34.1]} 38. Ke3 {[%clk 0:03:00.3]} 38... Rg5
{[%clk 0:03:32.4]} 39. Rc2 {[%clk 0:02:55.4]} 39... Kf7 {[%clk 0:03:30.2]} 40.
Kd4 {[%clk 0:02:54.3]} 40... Rg4+ {[%clk 0:03:28.7]} 41. Ke3 {[%clk 0:02:51.1]}
41... Ke6 {[%clk 0:03:27.9]} 42. Kf3 {[%clk 0:02:37.3]} 42... Rd4 {[%clk
0:03:23.7]} 43. Ke3 {[%clk 0:02:34.3]} 43... Kd5 {[%clk 0:03:21.8]} 44. g3
{[%clk 0:02:29.1]} 44... Rd3+ {[%clk 0:03:19.2]} 45. Kf2 {[%clk 0:02:28.2]}
45... Kd4 {[%clk 0:03:18.1]} 46. g4 {[%clk 0:02:25.1]} 46... c3 {[%clk
0:03:17.3]} 47. Ke2 {[%clk 0:02:23.2]} 47... Rh3 {[%clk 0:03:13.3]} 48. Ke1
{[%clk 0:02:18.3]} 48... Rh1+ {[%clk 0:03:11.4]} 49. Ke2 {[%clk 0:02:15.3]}
49... Rh2+ {[%clk 0:03:10]} 50. Kd1 {[%clk 0:02:14.4]} 50... Rxc2 {[%clk
0:03:09.3]} 51. Kxc2 {[%clk 0:02:13.7]} 51... Kc4 {[%clk 0:03:08.6]} 52. Kc1
{[%clk 0:02:10.8]} 52... Kd3 {[%clk 0:03:07.1]} 0-1

[Event "Live Chess"]
[Site "Chess.com"]
[Date "2023.05.21"]
[Round "-"]
[White "RoaringKnights"]
[Black "lateforthesky"]
[Result "0-1"]
[WhiteElo "1034"]
[BlackElo "2116"]
[TimeControl "300"]
[EndTime "2:49:58 PDT"]
[Termination "lateforthesky won by checkmate"]

1. e4 {[%clk 0:04:58.5]} 1... c5 {[%clk 0:04:58.8]} 2. Nf3 {[%clk 0:04:55.6]}
2... Nf6 {[%clk 0:04:56.9]} 3. Bc4 {[%clk 0:04:53.6]} 3... e6 {[%clk 0:04:53.6]}
4. d4 {[%clk 0:04:51.5]} 4... Nxe4 {[%clk 0:04:51]} 5. dxc5 {[%clk 0:04:49.6]}
5... Nxc5 {[%clk 0:04:49.3]} 6. Nc3 {[%clk 0:04:47.6]} 6... d5 {[%clk
0:04:46.6]} 7. Bb5+ {[%clk 0:04:45.6]} 7... Bd7 {[%clk 0:04:45.9]} 8. Bxd7+
{[%clk 0:04:44.9]} 8... Qxd7 {[%clk 0:04:44.8]} 9. Bf4 {[%clk 0:04:42.8]} 9...
Nc6 {[%clk 0:04:42.9]} 10. O-O {[%clk 0:04:41.6]} 10... b6 {[%clk 0:04:18.4]}
11. a3 {[%clk 0:04:39.7]} 11... Bd6 {[%clk 0:04:16]} 12. Bxd6 {[%clk 0:04:35.5]}
12... Qxd6 {[%clk 0:04:14.4]} 13. Re1 {[%clk 0:04:34]} 13... O-O {[%clk
0:04:10.5]} 14. b4 {[%clk 0:04:29.1]} 14... Nd7 {[%clk 0:04:07.5]} 15. Qd3
{[%clk 0:04:22.4]} 15... Nf6 {[%clk 0:04:03.7]} 16. Re3 {[%clk 0:04:12.9]} 16...
Rfd8 {[%clk 0:03:57.3]} 17. Ne2 {[%clk 0:04:01.1]} 17... e5 {[%clk 0:03:46]} 18.
Rd1 {[%clk 0:03:54.9]} 18... e4 {[%clk 0:03:40.3]} 19. Qc3 {[%clk 0:03:52.2]}
19... exf3 {[%clk 0:03:37]} 20. Rxf3 {[%clk 0:03:51.3]} 20... Rac8 {[%clk
0:03:18.3]} 21. Qb2 {[%clk 0:03:42.3]} 21... Ne5 {[%clk 0:03:09.2]} 22. Rg3
{[%clk 0:03:35.5]} 22... Ng6 {[%clk 0:03:04.3]} 23. h3 {[%clk 0:03:24.2]} 23...
h5 {[%clk 0:03:01.9]} 24. Qd4 {[%clk 0:03:15.8]} 24... Rc4 {[%clk 0:02:56.3]}
25. Qd3 {[%clk 0:03:12.8]} 25... Nf4 {[%clk 0:02:36.7]} 26. Nxf4 {[%clk
0:03:08.9]} 26... Rxf4 {[%clk 0:02:31]} 27. Qe3 {[%clk 0:03:06.1]} 27... Re8
{[%clk 0:02:24.8]} 28. Qc3 {[%clk 0:02:52]} 28... Rfe4 {[%clk 0:02:21]} 29. Rf3
{[%clk 0:02:42]} 29... d4 {[%clk 0:02:13.3]} 30. Qd2 {[%clk 0:02:32.4]} 30...
Qe5 {[%clk 0:02:11.9]} 31. Rg3 {[%clk 0:02:17.5]} 31... Re1+ {[%clk 0:01:48.3]}
32. Kh2 {[%clk 0:02:11.2]} 32... Rxd1 {[%clk 0:01:44.7]} 33. Qxd1 {[%clk
0:02:09.9]} 33... h4 {[%clk 0:01:43.7]} 34. Qf3 {[%clk 0:02:01.4]} 34... hxg3+
{[%clk 0:01:42.3]} 35. Qxg3 {[%clk 0:02:00.3]} 35... Qxg3+ {[%clk 0:01:40.9]}
36. Kxg3 {[%clk 0:01:59.5]} 36... Re2 {[%clk 0:01:40.3]} 37. Kf3 {[%clk
0:01:58]} 37... Rxc2 {[%clk 0:01:38.9]} 38. Kf4 {[%clk 0:01:57.2]} 38... Re2
{[%clk 0:01:35.7]} 39. g4 {[%clk 0:01:54.6]} 39... d3 {[%clk 0:01:34.4]} 40. g5
{[%clk 0:01:53.7]} 40... Nd5+ {[%clk 0:01:33.1]} 41. Kf3 {[%clk 0:01:52.4]}
41... Nc3 {[%clk 0:01:31.5]} 42. h4 {[%clk 0:01:50]} 42... d2 {[%clk 0:01:30.7]}
43. h5 {[%clk 0:01:47.3]} 43... d1=Q {[%clk 0:01:29.8]} 44. Kf4 {[%clk
0:01:45.8]} 44... Re4+ {[%clk 0:01:26.8]} 45. Kg3 {[%clk 0:01:42.9]} 45... Qg4+
{[%clk 0:01:24.1]} 46. Kh2 {[%clk 0:01:41.7]} 46... Re2 {[%clk 0:01:21.7]} 47.
Kh1 {[%clk 0:01:38.2]} 47... Rxf2 {[%clk 0:01:19.8]} 48. h6 {[%clk 0:01:35.3]}
48... Qg2# {[%clk 0:01:18.4]} 0-1

[Event "Live Chess"]
[Site "Chess.com"]
[Date "2023.05.21"]
[Round "-"]
[White "tpm07"]
[Black "Crowded_House"]
[Result "1/2-1/2"]
[WhiteElo "1932"]
[BlackElo "1669"]
[TimeControl "300"]
[EndTime "2:50:16 PDT"]
[Termination "Game drawn by repetition"]

1. e4 {[%clk 0:04:58.2]} 1... e6 {[%clk 0:04:58.3]} 2. Nf3 {[%clk 0:04:56.6]}
2... d5 {[%clk 0:04:57.8]} 3. Nc3 {[%clk 0:04:55.7]} 3... dxe4 {[%clk
0:04:46.2]} 4. Nxe4 {[%clk 0:04:54]} 4... Nf6 {[%clk 0:04:45.9]} 5. Nxf6+ {[%clk
0:04:52.9]} 5... Qxf6 {[%clk 0:04:44.6]} 6. d4 {[%clk 0:04:52.2]} 6... h6 {[%clk
0:04:43.6]} 7. Bd3 {[%clk 0:04:49.7]} 7... Bd6 {[%clk 0:04:39.3]} 8. c3 {[%clk
0:04:41.1]} 8... b6 {[%clk 0:04:36]} 9. Be4 {[%clk 0:04:35.1]} 9... c6 {[%clk
0:04:29.7]} 10. a4 {[%clk 0:04:20.4]} 10... Bb7 {[%clk 0:04:27.4]} 11. a5 {[%clk
0:04:19.2]} 11... bxa5 {[%clk 0:04:18.6]} 12. O-O {[%clk 0:04:12.1]} 12... O-O
{[%clk 0:04:05.7]} 13. Qe2 {[%clk 0:04:07.7]} 13... Nd7 {[%clk 0:03:58.2]} 14.
Rxa5 {[%clk 0:03:50.8]} 14... a6 {[%clk 0:03:55.9]} 15. Ne5 {[%clk 0:03:39.7]}
15... Qd8 {[%clk 0:03:27.2]} 16. b4 {[%clk 0:03:22]} 16... Nxe5 {[%clk
0:03:19.8]} 17. dxe5 {[%clk 0:03:17.8]} 17... Bc7 {[%clk 0:03:15.3]} 18. Ra1
{[%clk 0:03:12.3]} 18... Qe7 {[%clk 0:03:08.8]} 19. f4 {[%clk 0:03:03.9]} 19...
Bb6+ {[%clk 0:03:05.6]} 20. Kh1 {[%clk 0:03:02.3]} 20... c5 {[%clk 0:02:46.2]}
21. Bxb7 {[%clk 0:02:52.6]} 21... Qxb7 {[%clk 0:02:44.2]} 22. f5 {[%clk
0:02:49.6]} 22... exf5 {[%clk 0:02:40.7]} 23. Rxf5 {[%clk 0:02:47.6]} 23... cxb4
{[%clk 0:02:39]} 24. cxb4 {[%clk 0:02:32]} 24... Rfe8 {[%clk 0:02:35.5]} 25. Qg4
{[%clk 0:02:28.3]} 25... Re6 {[%clk 0:02:02.9]} 26. Bf4 {[%clk 0:02:15.1]} 26...
Rg6 {[%clk 0:02:01.5]} 27. Qe2 {[%clk 0:02:08.5]} 27... Qd7 {[%clk 0:01:45.1]}
28. Qe4 {[%clk 0:02:04]} 28... Rd8 {[%clk 0:01:38.9]} 29. h4 {[%clk 0:02:02.8]}
29... Qd3 {[%clk 0:01:32.3]} 30. Qxd3 {[%clk 0:01:54.7]} 30... Rxd3 {[%clk
0:01:31.1]} 31. Rxa6 {[%clk 0:01:51.3]} 31... Be3 {[%clk 0:01:18.8]} 32. Bxe3
{[%clk 0:01:46.6]} 32... Rxa6 {[%clk 0:01:10.7]} 33. Bc5 {[%clk 0:01:28.1]}
33... Ra1+ {[%clk 0:01:08.6]} 34. Kh2 {[%clk 0:01:26.7]} 34... Rd2 {[%clk
0:00:56.7]} 35. Rf3 {[%clk 0:01:12.4]} 35... Raa2 {[%clk 0:00:54.3]} 36. Rg3
{[%clk 0:01:11]} 36... Rd5 {[%clk 0:00:47.8]} 37. Bd6 {[%clk 0:01:09.4]} 37...
Rb2 {[%clk 0:00:45.5]} 38. Rc3 {[%clk 0:00:53]} 38... Rdd2 {[%clk 0:00:42.9]}
39. Rg3 {[%clk 0:00:51.6]} 39... Rd5 {[%clk 0:00:42]} 40. Rc3 {[%clk 0:00:45.8]}
40... Rdd2 {[%clk 0:00:40.8]} 41. Rg3 {[%clk 0:00:45.1]} 41... Rd5 {[%clk
0:00:40.1]} 1/2-1/2